[Event "Late-Titled-Tuesday-Blitz-February-20-2024"]
[Site "Chess.com"]
[Date "2024.02.20"]
[Round "6"]
[White "babero_gordo"]
[Black "el008"]
[Result "0-1"]
[WhiteElo "2168"]
[BlackElo "2536"]
[TimeControl "180+1"]
[EndTime "15:02:42 PST"]
[Termination "el008 won by resignation"]

1. e4 {[%clk 0:03:00.9]} 1... e6 {[%clk 0:03:00.9]} 2. d4 {[%clk 0:03:00.4]}
2... d5 {[%clk 0:03:01.5]} 3. e5 {[%clk 0:03:00.7]} 3... c5 {[%clk 0:03:01.6]}
4. c3 {[%clk 0:03:01.3]} 4... Nc6 {[%clk 0:03:02.2]} 5. Nf3 {[%clk 0:03:01.6]}
5... Qb6 {[%clk 0:03:02.3]} 6. Bd3 {[%clk 0:03:01.8]} 6... Bd7 {[%clk
0:02:59.8]} 7. O-O {[%clk 0:03:00.5]} 7... cxd4 {[%clk 0:03:00]} 8. Re1 {[%clk
0:03:00.8]} 8... Nge7 {[%clk 0:02:58.5]} 9. h4 {[%clk 0:03:00]} 9... h5 {[%clk
0:02:58.4]} 10. Ng5 {[%clk 0:02:32.2]} 10... g6 {[%clk 0:02:55.3]} 11. cxd4
{[%clk 0:02:23]} 11... Nxd4 {[%clk 0:02:55]} 12. Nc3 {[%clk 0:02:19.1]} 12...
Nef5 {[%clk 0:02:54.6]} 13. Bxf5 {[%clk 0:02:00.1]} 13... Nxf5 {[%clk
0:02:54.2]} 14. Qf3 {[%clk 0:01:56.2]} 14... Be7 {[%clk 0:02:52.2]} 15. Rb1
{[%clk 0:01:41.3]} 15... Bc6 {[%clk 0:02:52.4]} 16. Qf4 {[%clk 0:01:22.7]} 16...
a5 {[%clk 0:02:52.1]} 17. Ne2 {[%clk 0:00:51.3]} 17... Qb4 {[%clk 0:02:52.2]}
18. Qf3 {[%clk 0:00:39.6]} 18... Qxh4 {[%clk 0:02:50.4]} 19. Nh3 {[%clk
0:00:35.2]} 19... Qb4 {[%clk 0:02:50.3]} 20. Nc3 {[%clk 0:00:32.9]} 20... d4
{[%clk 0:02:50]} 21. Ne4 {[%clk 0:00:23.8]} 21... Qxe1+ {[%clk 0:02:49.9]} 22.
Kh2 {[%clk 0:00:24.1]} 22... Bxe4 {[%clk 0:02:50.8]} 0-1

[Event "Late-Titled-Tuesday-Blitz-February-20-2024"]
[Site "Chess.com"]
[Date "2024.02.20"]
[Round "6"]
[White "kalxandria"]
[Black "pfalcon1949"]
[Result "1-0"]
[WhiteElo "2259"]
[BlackElo "1993"]
[TimeControl "180+1"]
[EndTime "15:02:43 PST"]
[Termination "kalxandria won by resignation"]

1. e4 {[%clk 0:03:00.9]} 1... e6 {[%clk 0:02:59.1]} 2. d4 {[%clk 0:02:59.6]}
2... d5 {[%clk 0:02:59.6]} 3. Nd2 {[%clk 0:02:57.1]} 3... Nc6 {[%clk 0:02:58.4]}
4. Ngf3 {[%clk 0:02:54.7]} 4... Nf6 {[%clk 0:02:58.3]} 5. e5 {[%clk 0:02:53.5]}
5... Nd7 {[%clk 0:02:57.5]} 6. c3 {[%clk 0:02:49.6]} 6... f6 {[%clk 0:02:56.8]}
7. exf6 {[%clk 0:02:48.5]} 7... Qxf6 {[%clk 0:02:56.8]} 8. Bd3 {[%clk
0:02:47.8]} 8... Bd6 {[%clk 0:02:56.8]} 9. Nf1 {[%clk 0:02:47.2]} 9... O-O
{[%clk 0:02:56.2]} 10. Ng3 {[%clk 0:02:43.8]} 10... e5 {[%clk 0:02:50.4]} 11.
dxe5 {[%clk 0:02:41.9]} 11... Ndxe5 {[%clk 0:02:50.5]} 12. Be2 {[%clk
0:02:40.8]} 12... Nxf3+ {[%clk 0:02:47.3]} 13. Bxf3 {[%clk 0:02:39.9]} 13...
Re8+ {[%clk 0:02:38.9]} 14. Be3 {[%clk 0:02:32.3]} 14... d4 {[%clk 0:02:37]} 15.
cxd4 {[%clk 0:02:29.9]} 15... Nxd4 {[%clk 0:02:36.9]} 16. Ne4 {[%clk 0:02:25.3]}
16... Nxf3+ {[%clk 0:02:34.5]} 17. Qxf3 {[%clk 0:02:22.5]} 17... Qxf3 {[%clk
0:02:26.4]} 18. gxf3 {[%clk 0:02:23.4]} 18... Bb4+ {[%clk 0:02:24.5]} 19. Kf1
{[%clk 0:02:19.5]} 19... Bh3+ {[%clk 0:02:20.5]} 20. Ke2 {[%clk 0:02:18.5]}
20... Rad8 {[%clk 0:02:14.6]} 21. Rhg1 {[%clk 0:02:07.7]} 21... Bf5 {[%clk
0:02:10.9]} 22. Nf6+ {[%clk 0:02:05.2]} 22... Kf7 {[%clk 0:02:05.5]} 23. Nxe8
{[%clk 0:02:06.1]} 23... Rxe8 {[%clk 0:02:03.2]} 24. Rac1 {[%clk 0:02:00.6]}
24... c6 {[%clk 0:02:02.1]} 25. a3 {[%clk 0:01:51.5]} 25... Ba5 {[%clk
0:01:56.5]} 26. Rc5 {[%clk 0:01:44.6]} 1-0

[Event "Late-Titled-Tuesday-Blitz-February-20-2024"]
[Site "Chess.com"]
[Date "2024.02.20"]
[Round "6"]
[White "Sanyura"]
[Black "Bilan_Danila"]
[Result "1-0"]
[WhiteElo "2610"]
[BlackElo "2461"]
[TimeControl "180+1"]
[EndTime "15:02:52 PST"]
[Termination "Sanyura won by resignation"]

1. Nf3 {[%clk 0:02:57.6]} 1... d5 {[%clk 0:02:59.7]} 2. c4 {[%clk 0:02:57.4]}
2... c6 {[%clk 0:02:59.8]} 3. g3 {[%clk 0:02:58.1]} 3... Nf6 {[%clk 0:03:00.1]}
4. Bg2 {[%clk 0:02:58.8]} 4... Bf5 {[%clk 0:03:00.8]} 5. O-O {[%clk 0:02:59.7]}
5... e6 {[%clk 0:03:00.9]} 6. d3 {[%clk 0:03:00.2]} 6... Nbd7 {[%clk 0:03:00.4]}
7. b3 {[%clk 0:02:59.9]} 7... Bc5 {[%clk 0:02:58.3]} 8. Bb2 {[%clk 0:03:00.2]}
8... h6 {[%clk 0:02:56]} 9. Nbd2 {[%clk 0:03:00.7]} 9... O-O {[%clk 0:02:56.4]}
10. a3 {[%clk 0:02:54.3]} 10... a5 {[%clk 0:02:56.1]} 11. Qe1 {[%clk 0:02:52.9]}
11... Qc7 {[%clk 0:02:43]} 12. e4 {[%clk 0:02:51.2]} 12... dxe4 {[%clk
0:02:41.6]} 13. dxe4 {[%clk 0:02:52.1]} 13... Bh7 {[%clk 0:02:39.5]} 14. e5
{[%clk 0:02:47.9]} 14... Ne8 {[%clk 0:02:32.1]} 15. Qe2 {[%clk 0:02:47.7]} 15...
Rd8 {[%clk 0:02:01.9]} 16. Rfd1 {[%clk 0:02:31.2]} 16... Qb6 {[%clk 0:01:52.3]}
17. Bc3 {[%clk 0:02:22.4]} 17... Bc2 {[%clk 0:01:40.5]} 18. Rdc1 {[%clk
0:02:22.4]} 18... Bxb3 {[%clk 0:01:31.9]} 19. Nxb3 {[%clk 0:02:22.3]} 19... Qxb3
{[%clk 0:01:32.8]} 20. Nd2 {[%clk 0:02:19.9]} 20... Qa4 {[%clk 0:01:28.3]} 21.
Be4 {[%clk 0:02:18.1]} 21... Nb6 {[%clk 0:01:04.2]} 22. Bc2 {[%clk 0:02:14.1]}
22... Rxd2 {[%clk 0:01:02]} 23. Bxd2 {[%clk 0:02:15]} 1-0

[Event "Late-Titled-Tuesday-Blitz-February-20-2024"]
[Site "Chess.com"]
[Date "2024.02.20"]
[Round "6"]
[White "Herman-NY"]
[Black "Godzillator"]
[Result "1-0"]
[WhiteElo "2509"]
[BlackElo "2322"]
[TimeControl "180+1"]
[EndTime "15:02:55 PST"]
[Termination "Herman-NY won by resignation"]

1. e4 {[%clk 0:03:00.9]} 1... d5 {[%clk 0:02:59.6]} 2. exd5 {[%clk 0:03:00.6]}
2... Qxd5 {[%clk 0:03:00]} 3. Nc3 {[%clk 0:03:01.1]} 3... Qd8 {[%clk 0:02:59.4]}
4. d4 {[%clk 0:03:01.1]} 4... c6 {[%clk 0:02:59.5]} 5. Bc4 {[%clk 0:03:00.2]}
5... Nf6 {[%clk 0:02:59.6]} 6. Nf3 {[%clk 0:03:00.2]} 6... b5 {[%clk 0:02:59]}
7. Bd3 {[%clk 0:02:50.7]} 7... Bg4 {[%clk 0:02:55.2]} 8. h3 {[%clk 0:02:45.7]}
8... Bh5 {[%clk 0:02:53.9]} 9. O-O {[%clk 0:02:44.7]} 9... e6 {[%clk 0:02:53.1]}
10. Ne4 {[%clk 0:02:41]} 10... Nbd7 {[%clk 0:02:48.2]} 11. Re1 {[%clk
0:02:30.8]} 11... Be7 {[%clk 0:02:46.4]} 12. Neg5 {[%clk 0:02:17.1]} 12... O-O
{[%clk 0:02:22.6]} 13. c3 {[%clk 0:02:08.2]} 13... Bg6 {[%clk 0:01:55.1]} 14.
Bxg6 {[%clk 0:02:06.6]} 14... hxg6 {[%clk 0:01:54.8]} 15. Qe2 {[%clk 0:01:48]}
15... Re8 {[%clk 0:01:49.7]} 16. Nxf7 {[%clk 0:01:39.3]} 16... Kxf7 {[%clk
0:01:48]} 17. Qxe6+ {[%clk 0:01:39.1]} 17... Kf8 {[%clk 0:01:47.5]} 18. Ng5
{[%clk 0:01:39.4]} 18... Ne5 {[%clk 0:01:41.5]} 19. dxe5 {[%clk 0:01:35.9]}
19... Qd5 {[%clk 0:01:41.7]} 20. exf6 {[%clk 0:01:32.9]} 20... Qxe6 {[%clk
0:01:42]} 21. Nxe6+ {[%clk 0:01:26.1]} 21... Kf7 {[%clk 0:01:41.6]} 22. fxe7
{[%clk 0:01:25]} 22... Rxe7 {[%clk 0:01:40.5]} 23. Ng5+ {[%clk 0:01:25.2]} 23...
Kf6 {[%clk 0:01:40.6]} 24. Rxe7 {[%clk 0:01:25.1]} 24... Kxe7 {[%clk 0:01:41]}
25. Be3 {[%clk 0:01:24.2]} 1-0

[Event "Late-Titled-Tuesday-Blitz-February-20-2024"]
[Site "Chess.com"]
[Date "2024.02.20"]
[Round "6"]
[White "TemploVillamarin"]
[Black "CFalcons8"]
[Result "0-1"]
[WhiteElo "2201"]
[BlackElo "2426"]
[TimeControl "180+1"]
[EndTime "15:02:58 PST"]
[Termination "CFalcons8 won by resignation"]

1. d4 {[%clk 0:02:59.2]} 1... Nf6 {[%clk 0:02:59.7]} 2. Nc3 {[%clk 0:02:59.2]}
2... d5 {[%clk 0:02:59.4]} 3. e4 {[%clk 0:02:59.7]} 3... dxe4 {[%clk 0:02:59.1]}
4. f3 {[%clk 0:03:00.2]} 4... exf3 {[%clk 0:02:59.4]} 5. Nxf3 {[%clk 0:03:01.1]}
5... Bg4 {[%clk 0:02:59.3]} 6. Bc4 {[%clk 0:03:00.4]} 6... e6 {[%clk 0:02:59.5]}
7. O-O {[%clk 0:03:00.7]} 7... Bxf3 {[%clk 0:02:57.4]} 8. Rxf3 {[%clk
0:02:57.3]} 8... Bb4 {[%clk 0:02:56.9]} 9. Bg5 {[%clk 0:02:56.3]} 9... Nbd7
{[%clk 0:02:56.2]} 10. Ne4 {[%clk 0:02:49.5]} 10... Be7 {[%clk 0:02:53.8]} 11.
Nxf6+ {[%clk 0:02:41.9]} 11... Nxf6 {[%clk 0:02:54.7]} 12. c3 {[%clk 0:02:40.2]}
12... O-O {[%clk 0:02:50.6]} 13. Bd3 {[%clk 0:02:37.2]} 13... h6 {[%clk
0:02:48.9]} 14. Bxh6 {[%clk 0:02:15.1]} 14... gxh6 {[%clk 0:02:44.9]} 15. Qd2
{[%clk 0:02:05.5]} 15... Ng4 {[%clk 0:02:40.4]} 16. Rg3 {[%clk 0:02:01.7]} 16...
f5 {[%clk 0:02:37.2]} 17. Qxh6 {[%clk 0:01:39.9]} 17... Rf6 {[%clk 0:02:28.8]}
18. Qg5+ {[%clk 0:01:05.2]} 18... Kf8 {[%clk 0:02:05.1]} 19. h3 {[%clk 0:01:05]}
19... Rf7 {[%clk 0:01:56.5]} 20. hxg4 {[%clk 0:01:02.7]} 20... Bxg5 {[%clk
0:01:56.2]} 0-1

[Event "Late-Titled-Tuesday-Blitz-February-20-2024"]
[Site "Chess.com"]
[Date "2024.02.20"]
[Round "6"]
[White "Atanejhad"]
[Black "ritanovikova"]
[Result "1-0"]
[WhiteElo "2436"]
[BlackElo "2218"]
[TimeControl "180+1"]
[EndTime "15:03:27 PST"]
[Termination "Atanejhad won on time"]

1. d4 {[%clk 0:03:00.9]} 1... g6 {[%clk 0:02:54.7]} 2. c3 {[%clk 0:02:59.1]}
2... Bg7 {[%clk 0:02:54.9]} 3. e4 {[%clk 0:02:58.3]} 3... c5 {[%clk 0:02:55]} 4.
Be3 {[%clk 0:02:41.7]} 4... cxd4 {[%clk 0:02:53.7]} 5. cxd4 {[%clk 0:02:42.6]}
5... Qb6 {[%clk 0:02:53]} 6. Qd2 {[%clk 0:02:42.3]} 6... Nf6 {[%clk 0:02:46]} 7.
f3 {[%clk 0:02:41.9]} 7... d5 {[%clk 0:02:38.7]} 8. e5 {[%clk 0:02:41.3]} 8...
Ng8 {[%clk 0:02:29.5]} 9. Nc3 {[%clk 0:02:38.5]} 9... Be6 {[%clk 0:02:20.3]} 10.
Nge2 {[%clk 0:02:29.4]} 10... h5 {[%clk 0:02:04.1]} 11. Nf4 {[%clk 0:02:29]}
11... Qd8 {[%clk 0:01:49.7]} 12. Nxe6 {[%clk 0:02:25.7]} 12... fxe6 {[%clk
0:01:49.3]} 13. Bd3 {[%clk 0:02:26.1]} 13... Kf7 {[%clk 0:01:20.2]} 14. Qc2
{[%clk 0:02:22.5]} 14... Bh6 {[%clk 0:01:16.6]} 15. Bxg6+ {[%clk 0:02:21.9]}
15... Kg7 {[%clk 0:01:16.7]} 16. Bxh5 {[%clk 0:02:18.1]} 1-0

[Event "Late-Titled-Tuesday-Blitz-February-20-2024"]
[Site "Chess.com"]
[Date "2024.02.20"]
[Round "6"]
[White "DanielNaroditsky"]
[Black "Gentlejimmy7"]
[Result "1-0"]
[WhiteElo "3095"]
[BlackElo "2571"]
[TimeControl "180+1"]
[EndTime "15:03:34 PST"]
[Termination "DanielNaroditsky won by resignation"]

1. e4 {[%clk 0:03:00.9]} 1... c6 {[%clk 0:02:53.3]} 2. d4 {[%clk 0:03:01.1]}
2... d5 {[%clk 0:02:53.7]} 3. exd5 {[%clk 0:03:01.7]} 3... cxd5 {[%clk
0:02:53.3]} 4. Nf3 {[%clk 0:03:02.6]} 4... Nc6 {[%clk 0:02:51.5]} 5. Bb5 {[%clk
0:03:02.1]} 5... Nf6 {[%clk 0:02:48.6]} 6. c4 {[%clk 0:03:01.7]} 6... e6 {[%clk
0:02:48.4]} 7. Nc3 {[%clk 0:03:01.1]} 7... Be7 {[%clk 0:02:44.9]} 8. Ne5 {[%clk
0:02:59.6]} 8... Bd7 {[%clk 0:02:44.6]} 9. Nxd7 {[%clk 0:03:00.2]} 9... Qxd7
{[%clk 0:02:44.9]} 10. O-O {[%clk 0:03:00.9]} 10... O-O {[%clk 0:02:44.7]} 11.
c5 {[%clk 0:03:00.2]} 11... Qc7 {[%clk 0:02:22.6]} 12. Re1 {[%clk 0:02:58.7]}
12... b6 {[%clk 0:02:20.1]} 13. Bxc6 {[%clk 0:02:54.7]} 13... Qxc6 {[%clk
0:02:20]} 14. b4 {[%clk 0:02:55.5]} 14... bxc5 {[%clk 0:02:14.2]} 15. bxc5
{[%clk 0:02:56.4]} 15... Ne4 {[%clk 0:02:07.3]} 16. Nxe4 {[%clk 0:02:47.8]}
16... dxe4 {[%clk 0:02:08.2]} 17. Qc2 {[%clk 0:02:48.3]} 17... f5 {[%clk
0:02:06.7]} 18. Rb1 {[%clk 0:02:48.4]} 18... Bf6 {[%clk 0:02:05.4]} 19. Rd1
{[%clk 0:02:44.2]} 19... Rfd8 {[%clk 0:02:04.7]} 20. Be3 {[%clk 0:02:42]} 20...
Rab8 {[%clk 0:01:59.6]} 21. Rxb8 {[%clk 0:02:41.2]} 21... Rxb8 {[%clk
0:02:00.3]} 22. g3 {[%clk 0:02:40.6]} 22... Kf7 {[%clk 0:01:27.7]} 23. Qc4
{[%clk 0:02:39]} 23... Qd5 {[%clk 0:01:26.4]} 24. Qa4 {[%clk 0:02:37.6]} 24...
Rb2 {[%clk 0:01:19.2]} 25. Qxa7+ {[%clk 0:02:27]} 25... Kg6 {[%clk 0:01:18.9]}
26. h4 {[%clk 0:02:21.2]} 26... e5 {[%clk 0:01:07.5]} 27. c6 {[%clk 0:02:07.7]}
27... Rxa2 {[%clk 0:01:07]} 28. Qb8 {[%clk 0:01:52.4]} 28... Rc2 {[%clk
0:00:55.8]} 29. Qe8+ {[%clk 0:01:47.6]} 29... Qf7 {[%clk 0:00:48.5]} 30. h5+
{[%clk 0:01:47.8]} 1-0

[Event "Late-Titled-Tuesday-Blitz-February-20-2024"]
[Site "Chess.com"]
[Date "2024.02.20"]
[Round "6"]
[White "OPQRC"]
[Black "Hui_Li_Macau"]
[Result "1/2-1/2"]
[WhiteElo "2506"]
[BlackElo "2348"]
[TimeControl "180+1"]
[EndTime "15:03:34 PST"]
[Termination "Game drawn by repetition"]

1. e4 {[%clk 0:02:38.9]} 1... e5 {[%clk 0:02:52.4]} 2. Nf3 {[%clk 0:02:38.8]}
2... Nf6 {[%clk 0:02:52.6]} 3. Nc3 {[%clk 0:02:38.3]} 3... Nc6 {[%clk
0:02:52.8]} 4. d4 {[%clk 0:02:37.5]} 4... exd4 {[%clk 0:02:53.7]} 5. Nxd4 {[%clk
0:02:37.9]} 5... Bb4 {[%clk 0:02:54.3]} 6. Nxc6 {[%clk 0:02:37.3]} 6... bxc6
{[%clk 0:02:55.2]} 7. Bd3 {[%clk 0:02:37.1]} 7... O-O {[%clk 0:02:55.8]} 8. O-O
{[%clk 0:02:37.1]} 8... d5 {[%clk 0:02:56.4]} 9. exd5 {[%clk 0:02:37.6]} 9...
cxd5 {[%clk 0:02:57.3]} 10. Bg5 {[%clk 0:02:37.2]} 10... c6 {[%clk 0:02:55.6]}
11. h3 {[%clk 0:02:34.5]} 11... Bd6 {[%clk 0:02:55.3]} 12. Qf3 {[%clk
0:02:33.7]} 12... h6 {[%clk 0:02:55.5]} 13. Bh4 {[%clk 0:02:30.2]} 13... Rb8
{[%clk 0:02:54.7]} 14. b3 {[%clk 0:02:24.5]} 14... Be5 {[%clk 0:02:44]} 15. Bg3
{[%clk 0:02:23.5]} 15... Bxc3 {[%clk 0:02:22]} 16. Bxb8 {[%clk 0:02:21.8]} 16...
Bxa1 {[%clk 0:02:22.2]} 17. Rxa1 {[%clk 0:02:21.1]} 17... Bg4 {[%clk 0:02:12.1]}
18. hxg4 {[%clk 0:02:19.8]} 18... Qxb8 {[%clk 0:02:11.7]} 19. g3 {[%clk
0:01:56.3]} 19... Qe5 {[%clk 0:02:10.8]} 20. Rd1 {[%clk 0:01:37.8]} 20... Re8
{[%clk 0:02:07.9]} 21. Kg2 {[%clk 0:01:32.5]} 21... Qg5 {[%clk 0:02:04.4]} 22.
Bf5 {[%clk 0:01:26.5]} 22... g6 {[%clk 0:01:51.1]} 23. Bd3 {[%clk 0:01:14]}
23... Qxg4 {[%clk 0:01:48.7]} 24. Qxf6 {[%clk 0:01:04.2]} 24... Qxd1 {[%clk
0:01:47.3]} 25. Bxg6 {[%clk 0:01:04.4]} 25... fxg6 {[%clk 0:01:35]} 26. Qxg6+
{[%clk 0:01:05.3]} 26... Kf8 {[%clk 0:01:34.3]} 27. Qf6+ {[%clk 0:01:05.8]}
27... Kg8 {[%clk 0:01:34.6]} 28. Qg6+ {[%clk 0:01:06.7]} 28... Kf8 {[%clk
0:01:34.1]} 29. Qf6+ {[%clk 0:01:07.6]} 29... Kg8 {[%clk 0:01:34.4]} 30. Qg6+
{[%clk 0:01:08.5]} 1/2-1/2

[Event "Late-Titled-Tuesday-Blitz-February-20-2024"]
[Site "Chess.com"]
[Date "2024.02.20"]
[Round "6"]
[White "mjelcic"]
[Black "SharathRk6"]
[Result "0-1"]
[WhiteElo "2232"]
[BlackElo "2399"]
[TimeControl "180+1"]
[EndTime "15:03:40 PST"]
[Termination "SharathRk6 won by resignation"]

1. d4 {[%clk 0:03:00.9]} 1... Nf6 {[%clk 0:02:58.6]} 2. c4 {[%clk 0:03:00.4]}
2... e5 {[%clk 0:02:58.8]} 3. d5 {[%clk 0:02:55.4]} 3... d6 {[%clk 0:02:55.5]}
4. Nc3 {[%clk 0:02:53.9]} 4... Be7 {[%clk 0:02:52.5]} 5. e4 {[%clk 0:02:54.1]}
5... O-O {[%clk 0:02:52.4]} 6. h3 {[%clk 0:02:34.6]} 6... Nbd7 {[%clk
0:02:43.3]} 7. Bd3 {[%clk 0:02:30.2]} 7... Nc5 {[%clk 0:02:43.4]} 8. Bc2 {[%clk
0:02:30.2]} 8... a5 {[%clk 0:02:42.9]} 9. b3 {[%clk 0:02:29.7]} 9... c6 {[%clk
0:02:41.7]} 10. Nf3 {[%clk 0:02:18.9]} 10... Bd7 {[%clk 0:02:33]} 11. Bg5 {[%clk
0:02:12.3]} 11... h6 {[%clk 0:02:29.9]} 12. Bxf6 {[%clk 0:02:11.6]} 12... Bxf6
{[%clk 0:02:29.9]} 13. O-O {[%clk 0:02:11.3]} 13... Be7 {[%clk 0:02:26.7]} 14.
a3 {[%clk 0:02:11.4]} 14... f5 {[%clk 0:02:22]} 15. exf5 {[%clk 0:02:05.8]}
15... Bxf5 {[%clk 0:02:18.6]} 16. Bxf5 {[%clk 0:02:05.5]} 16... Rxf5 {[%clk
0:02:17.4]} 17. b4 {[%clk 0:02:05.4]} 17... axb4 {[%clk 0:02:14.8]} 18. axb4
{[%clk 0:02:04.7]} 18... Rxa1 {[%clk 0:02:14.6]} 19. Qxa1 {[%clk 0:02:03.1]}
19... Nd3 {[%clk 0:01:44.2]} 20. Qb1 {[%clk 0:01:54.5]} 20... Rxf3 {[%clk
0:01:41.6]} 21. gxf3 {[%clk 0:01:55.2]} 21... Nf4 {[%clk 0:01:41.3]} 22. Kh2
{[%clk 0:01:34.5]} 22... Qd7 {[%clk 0:01:39.6]} 0-1

[Event "Late-Titled-Tuesday-Blitz-February-20-2024"]
[Site "Chess.com"]
[Date "2024.02.20"]
[Round "6"]
[White "Sicupira"]
[Black "NtcPou"]
[Result "1-0"]
[WhiteElo "2291"]
[BlackElo "2013"]
[TimeControl "180+1"]
[EndTime "15:03:43 PST"]
[Termination "Sicupira won by resignation"]

1. e4 {[%clk 0:02:57]} 1... c6 {[%clk 0:02:59.7]} 2. d4 {[%clk 0:02:56.2]} 2...
d5 {[%clk 0:03:00]} 3. exd5 {[%clk 0:02:56.6]} 3... cxd5 {[%clk 0:03:00.1]} 4.
c4 {[%clk 0:02:57.3]} 4... Nf6 {[%clk 0:02:57]} 5. Nc3 {[%clk 0:02:57.8]} 5...
Nc6 {[%clk 0:02:51.6]} 6. Bg5 {[%clk 0:02:58.2]} 6... h6 {[%clk 0:02:45.4]} 7.
Bxf6 {[%clk 0:02:48.4]} 7... gxf6 {[%clk 0:02:44]} 8. cxd5 {[%clk 0:02:48.4]}
8... Nb8 {[%clk 0:02:33.7]} 9. Nf3 {[%clk 0:02:47]} 9... Bg4 {[%clk 0:02:29.5]}
10. Qa4+ {[%clk 0:02:43]} 10... Nd7 {[%clk 0:02:29.7]} 11. Be2 {[%clk
0:02:35.8]} 11... Bg7 {[%clk 0:02:21.8]} 12. h3 {[%clk 0:02:34.9]} 12... Bh5
{[%clk 0:02:17.8]} 13. O-O {[%clk 0:02:14.6]} 13... O-O {[%clk 0:02:17.2]} 14.
Rfe1 {[%clk 0:02:11.1]} 14... Nb6 {[%clk 0:02:16.1]} 15. Qb3 {[%clk 0:02:09.6]}
15... Rc8 {[%clk 0:02:02.2]} 16. a4 {[%clk 0:02:08.7]} 16... a5 {[%clk
0:01:56.3]} 17. Qb5 {[%clk 0:02:05.8]} 17... f5 {[%clk 0:01:41.9]} 18. Rad1
{[%clk 0:01:58.1]} 18... Nd7 {[%clk 0:01:22.2]} 19. Ne5 {[%clk 0:01:47.1]} 19...
Bxe2 {[%clk 0:01:11.8]} 20. Rxe2 {[%clk 0:01:45.1]} 20... Nf6 {[%clk 0:01:12.1]}
21. Qxb7 {[%clk 0:01:37.8]} 21... Ne4 {[%clk 0:01:05.9]} 22. Nxe4 {[%clk
0:01:32.1]} 22... fxe4 {[%clk 0:01:05.6]} 23. Nc6 {[%clk 0:01:30.2]} 23... Qd6
{[%clk 0:00:58]} 24. Nxe7+ {[%clk 0:01:28.7]} 24... Kh8 {[%clk 0:00:55.6]} 25.
Nxc8 {[%clk 0:01:28.2]} 1-0

[Event "Late-Titled-Tuesday-Blitz-February-20-2024"]
[Site "Chess.com"]
[Date "2024.02.20"]
[Round "6"]
[White "PawnEatingZombie"]
[Black "ImportedItalianMaple"]
[Result "0-1"]
[WhiteElo "2208"]
[BlackElo "2504"]
[TimeControl "180+1"]
[EndTime "15:03:57 PST"]
[Termination "ImportedItalianMaple won by resignation"]

1. e4 {[%clk 0:03:00.9]} 1... g6 {[%clk 0:03:00.1]} 2. d4 {[%clk 0:02:59.4]}
2... Bg7 {[%clk 0:03:00.6]} 3. c3 {[%clk 0:02:59]} 3... c6 {[%clk 0:03:00.3]} 4.
Bd3 {[%clk 0:02:57.4]} 4... d5 {[%clk 0:03:00.5]} 5. Nd2 {[%clk 0:02:56]} 5...
dxe4 {[%clk 0:02:41]} 6. Nxe4 {[%clk 0:02:55.5]} 6... Nf6 {[%clk 0:02:41]} 7.
Nxf6+ {[%clk 0:02:55.9]} 7... exf6 {[%clk 0:02:41.4]} 8. Nf3 {[%clk 0:02:56.4]}
8... O-O {[%clk 0:02:41.2]} 9. O-O {[%clk 0:02:56.3]} 9... a5 {[%clk 0:02:39.7]}
10. a4 {[%clk 0:02:54.9]} 10... Na6 {[%clk 0:02:39.7]} 11. h3 {[%clk 0:02:54.7]}
11... Nc7 {[%clk 0:02:39.8]} 12. Re1 {[%clk 0:02:49.3]} 12... Nd5 {[%clk
0:02:38.5]} 13. Bd2 {[%clk 0:02:45.7]} 13... Be6 {[%clk 0:02:36.7]} 14. Bf1
{[%clk 0:02:23.4]} 14... Qd6 {[%clk 0:02:33.4]} 15. Qc1 {[%clk 0:02:16]} 15...
Rfe8 {[%clk 0:02:32.5]} 16. Bh6 {[%clk 0:02:15.2]} 16... Re7 {[%clk 0:02:21]}
17. Bxg7 {[%clk 0:02:13.6]} 17... Rae8 {[%clk 0:02:21.7]} 18. Bh6 {[%clk
0:02:00.2]} 18... g5 {[%clk 0:02:16.3]} 19. Bxg5 {[%clk 0:01:55.1]} 19... fxg5
{[%clk 0:02:15.8]} 20. Nxg5 {[%clk 0:01:52.7]} 20... Bf5 {[%clk 0:02:15.3]} 21.
Rxe7 {[%clk 0:01:51.1]} 21... Rxe7 {[%clk 0:02:15.9]} 22. Nf3 {[%clk 0:01:50.1]}
22... Bg6 {[%clk 0:02:15.7]} 23. Qd2 {[%clk 0:01:48.5]} 23... Kg7 {[%clk
0:02:05.4]} 24. Re1 {[%clk 0:01:47.7]} 24... Rxe1 {[%clk 0:02:05.1]} 25. Qxe1
{[%clk 0:01:47.5]} 25... Bc2 {[%clk 0:02:05.7]} 26. Nh4 {[%clk 0:01:22.9]} 26...
Qf6 {[%clk 0:01:50.7]} 27. Qe5 {[%clk 0:01:07.8]} 27... Qxe5 {[%clk 0:01:41.9]}
28. dxe5 {[%clk 0:01:08.7]} 28... Nb6 {[%clk 0:01:42]} 29. g3 {[%clk 0:01:05.9]}
29... Nxa4 {[%clk 0:01:41.8]} 30. f4 {[%clk 0:01:06.4]} 30... Nxb2 {[%clk
0:01:41.9]} 31. c4 {[%clk 0:00:57.4]} 31... a4 {[%clk 0:01:41.8]} 0-1

[Event "Late-Titled-Tuesday-Blitz-February-20-2024"]
[Site "Chess.com"]
[Date "2024.02.20"]
[Round "6"]
[White "Slovineanu"]
[Black "Jadro9"]
[Result "0-1"]
[WhiteElo "2447"]
[BlackElo "2635"]
[TimeControl "180+1"]
[EndTime "15:04:02 PST"]
[Termination "Jadro9 won by resignation"]

1. d4 {[%clk 0:02:59.3]} 1... d6 {[%clk 0:03:00.1]} 2. e4 {[%clk 0:02:58.5]}
2... Nf6 {[%clk 0:02:57.5]} 3. Nc3 {[%clk 0:02:58.9]} 3... Nbd7 {[%clk
0:02:57.7]} 4. Nf3 {[%clk 0:02:58.5]} 4... e5 {[%clk 0:02:57.9]} 5. Bc4 {[%clk
0:02:58.9]} 5... Be7 {[%clk 0:02:57.7]} 6. O-O {[%clk 0:02:57.8]} 6... O-O
{[%clk 0:02:57.5]} 7. h3 {[%clk 0:02:57.5]} 7... h6 {[%clk 0:02:57.6]} 8. Re1
{[%clk 0:02:55.2]} 8... Re8 {[%clk 0:02:58.1]} 9. a4 {[%clk 0:02:52.1]} 9... Bf8
{[%clk 0:02:58.6]} 10. a5 {[%clk 0:02:50.9]} 10... c6 {[%clk 0:02:59.2]} 11. Be3
{[%clk 0:02:42.8]} 11... Nxe4 {[%clk 0:02:57.2]} 12. Nxe4 {[%clk 0:02:36]} 12...
d5 {[%clk 0:02:57.7]} 13. Nxe5 {[%clk 0:02:26.3]} 13... dxc4 {[%clk 0:02:47.9]}
14. a6 {[%clk 0:01:41]} 14... bxa6 {[%clk 0:02:33.3]} 15. Qf3 {[%clk 0:01:18.2]}
15... Nxe5 {[%clk 0:02:30.8]} 16. dxe5 {[%clk 0:01:18.4]} 16... Rxe5 {[%clk
0:02:31.1]} 17. Rad1 {[%clk 0:01:12.9]} 17... Rd5 {[%clk 0:02:31.4]} 18. Nc3
{[%clk 0:01:07.1]} 18... Rxd1 {[%clk 0:02:23.6]} 19. Rxd1 {[%clk 0:01:07.3]}
19... Qe8 {[%clk 0:02:24.3]} 20. Qg3 {[%clk 0:00:46.9]} 20... Kh8 {[%clk
0:02:20.6]} 21. Rd4 {[%clk 0:00:38.3]} 21... Be6 {[%clk 0:02:16.3]} 22. Rh4
{[%clk 0:00:28.1]} 22... Rd8 {[%clk 0:02:11.4]} 23. Bd4 {[%clk 0:00:18.7]} 23...
Kh7 {[%clk 0:02:07.7]} 24. Bxa7 {[%clk 0:00:11]} 24... Bf5 {[%clk 0:01:59.8]}
25. Qf4 {[%clk 0:00:08.4]} 25... Qe1+ {[%clk 0:01:59.5]} 0-1